bitfinex-derivatives/quotes_ETHF0:USTF0_20250817
["timestamp","ask_amount","ask_price","bid_price","bid_amount"]
[1755457853525,3.2078,4480.2,4480.0,2.1929]
[1755457853840,3.2078,4480.2,4480.1,2.1929]
[1755457855433,3.2078,4480.8,4480.7,0.8809]
[1755457855735,0.1,4481.2,4480.7,2.1929]
[1755457856037,0.6519,4481.2,4481.1,2.1929]
[1755457856231,1.2335,4481.2,4481.1,2.1929]
[1755457856535,4.11499568,4481.2,4480.2,2.880742]
[1755457856734,0.2415,4481.1,4481.0,0.2982]
[1755457856936,0.604,4481.1,4481.0,0.2982]
[1755457857134,0.604,4481.1,4481.0,1.2954]
[1755457857334,0.604,4481.1,4481.0,0.5222]
[1755457857335,1.4956,4481.1,4481.0,0.5222]
[1755457857642,0.8916,4481.0,4480.3,0.7732]
[1755457857836,1.1559,4480.9,4480.8,0.5222]
[1755457858136,1.1475,4480.9,4480.8,2.1929]
[1755457858737,1.4732,4480.9,4480.8,2.1929]
[1755457858939,1.1335,4480.9,4480.8,2.1929]
[1755457859435,1.4732,4480.9,4480.8,1.6541]
[1755457859735,3.3078,4481.2,4481.1,0.8809]
[1755457859934,3.9118,4481.2,4481.1,0.9526]
[1755457860237,1.4956,4480.4,4480.3,0.9526]
[1755457860536,1.4956,4480.4,4480.3,2.1929]
[1755457860537,0.3625,4480.4,4480.3,2.1929]
[1755457860833,1.1699,4480.7,4480.6,0.2982]
[1755457861137,1.1699,4480.7,4480.1,0.2982]
[1755457861138,1.4956,4480.2,4480.1,0.2982]
[1755457862832,0.9437,4480.2,4479.7,0.4304]
[1755457863028,3.8118,4480.0,4479.9,0.5222]
[1755457863232,4.7034,4480.0,4479.9,1.2954]
[1755457864437,4.7034,4480.0,4479.9,1.6541]
[1755457864738,4.7034,4480.0,4479.9,4.534842]
[1755457864938,4.7034,4480.0,4479.9,5.073642]
[1755457865440,4.7034,4480.0,4479.9,4.534842]
[1755457867238,4.90690775,4480.0,4479.9,2.880742]
[1755457867843,4.80130775,4480.0,4479.9,1.936742]
[1755457868042,4.80130775,4480.0,4479.9,2.279542]
[1755457868337,4.58120775,4480.0,4479.9,3.590842]
[1755457868934,4.58120775,4480.0,4479.9,4.129642]
[1755457869140,0.20350775,4480.0,4479.9,4.151942]
[1755457869334,0.5519,4480.9,4480.6,2.1929]
[1755457869548,0.9144,4480.9,4480.8,0.8809]
[1755457869840,1.413,4480.9,4480.8,0.3428]
[1755457870040,3.3078,4481.2,4479.9,1.936742]
[1755457870041,0.5816,4480.1,4480.0,1.2237]
[1755457870343,0.5816,4480.1,4479.9,1.936742]
[1755457870344,3.2078,4481.0,4480.4,0.3428]
[1755457870544,4.6208,4481.0,4480.9,2.1929]
[1755457871535,4.3413,4481.0,4480.9,2.1929]
[1755457871936,4.4925,4481.0,4480.4,0.3428]
[1755457872144,0.3625,4480.5,4480.4,2.1929]
[1755457872636,3.5703,4480.5,4480.4,2.1929]
[1755457872842,4.1222,4480.5,4480.4,2.1929]
[1755457874048,4.3257,4480.5,4480.4,2.1929]
[1755457874252,4.5448,4480.5,4480.4,1.6541]
[1755457874447,4.5448,4480.5,4480.4,2.1929]
[1755457874647,4.1222,4480.5,4480.4,2.1929]
[1755457874950,0.3625,4480.5,4480.4,2.1929]
[1755457875450,0.3625,4480.5,4480.4,5.073642]
[1755457875848,1.6165,4480.5,4480.4,5.073642]
[1755457876043,1.6165,4480.5,4480.4,3.178942]
[1755457876243,1.8366,4480.5,4480.4,2.880742]
[1755457876449,5.0444,4480.5,4480.4,3.223542]
[1755457879250,5.42727748,4480.5,4480.4,3.447542]
[1755457879451,4.6208,4480.5,4480.4,5.074442]
[1755457880250,5.22434402,4480.5,4480.4,5.074442]
[1755457880451,0.60354402,4480.5,4480.4,5.074442]
[1755457880844,0.95244402,4480.5,4480.4,5.074442]
[1755457881049,1.91944402,4480.5,4480.4,5.074442]
[1755457881449,2.12011331,4480.5,4480.4,5.074442]
[1755457881855,1.92661331,4480.5,4480.4,5.074442]
[1755457882060,1.92661116,4480.5,4480.4,5.074442]
[1755457882451,0.1,4481.2,4480.4,5.096742]
[1755457882651,0.80441673,4481.1,4481.0,0.8787]
[1755457882950,0.80441673,4481.1,4481.0,2.1754]
[1755457883148,1.15331673,4481.1,4481.0,2.1754]
[1755457883347,2.60911673,4481.1,4481.0,2.1754]
[1755457883554,0.5615,4480.7,4480.6,0.5506]
[1755457883748,1.8047,4480.7,4480.6,1.64]
[1755457884650,0.3489,4480.5,4480.4,2.880742]
[1755457884854,2.62088825,4480.5,4480.4,2.880742]
[1755457885553,4.68808825,4480.5,4479.0,0.3267]
[1755457885858,3.2078,4479.5,4478.8,1.086]
[1755457886060,0.60358825,4479.4,4478.9,0.3267]
[1755457886258,0.60358825,4479.3,4479.0,0.4346]
[1755457886561,0.60358825,4479.2,4479.1,2.1754]
[1755457886763,3.81138825,4479.2,4479.1,2.1754]
[1755457887452,0.02988825,4479.2,4479.1,2.1754]
[1755457887654,3.2078,4479.7,4479.6,0.8787]
[1755457887853,3.7687,4480.3,4480.2,0.8787]
[1755457888052,3.2078,4480.3,4480.2,2.1754]
[1755457888254,0.5609,4480.1,4479.1,3.0]
[1755457888458,0.5609,4479.3,4479.2,1.2967]
[1755457888655,3.2078,4479.9,4478.9,0.44627]
[1755457888849,3.2078,4479.9,4479.3,1.2967]
[1755457889055,3.2078,4479.9,4479.2,2.880742]
[1755457889056,3.2078,4479.9,4479.2,2.903042]
[1755457889356,3.2078,4479.9,4479.3,1.2967]
[1755457889558,3.2078,4479.9,4479.5,0.5354]
[1755457889756,3.2078,4479.9,4479.6,0.3267]
[1755457889960,3.2078,4479.9,4479.2,2.880742]
[1755457890155,3.2078,4479.9,4479.8,1.2967]
[1755457890556,3.7687,4479.9,4479.7,2.880742]
[1755457890760,3.7687,4479.9,4479.8,0.3267]
[1755457891855,3.2078,4479.9,4479.8,1.2967]
[1755457892056,3.7687,4480.4,4479.7,2.880742]
[1755457892259,3.7687,4480.4,4480.0,0.5354]
[1755457892464,3.7687,4480.4,4480.2,0.97]
[1755457892765,3.2078,4480.4,4480.3,1.2967]
[1755457894166,3.7687,4480.4,4480.3,0.8621]
[1755457894362,3.2078,4480.4,4480.3,1.2967]
[1755457894556,3.405755,4480.4,4480.3,1.2967]
[1755457894760,0.197955,4480.4,4480.3,1.2967]
[1755457895060,0.1,4481.2,4480.7,1.30818]
[1755457895256,0.1,4481.2,4480.8,0.3267]
[1755457895456,0.1,4481.2,4480.8,1.2967]
[1755457895652,0.1,4481.2,4480.7,0.44608]
[1755457895653,0.1,4481.2,4480.9,1.2967]
[1755457895863,0.1,4481.2,4481.0,1.2967]
[1755457896057,0.1,4481.2,4481.1,1.2967]
[1755457896458,3.2078,4481.6,4480.7,1.2967]
[1755457896663,3.2078,4481.6,4480.6,3.2078]
[1755457896958,3.2078,4481.6,4481.1,0.3267]
[1755457897163,3.2078,4481.6,4481.2,0.5354]
[1755457897462,3.2078,4481.6,4481.5,0.97]
[1755457897660,3.9667,4481.6,4481.5,1.2967]
[1755457897964,4.7637,4481.6,4481.5,2.1754]
[1755457898263,4.7637,4481.6,4481.5,0.3267]
[1755457898458,4.8637,4481.6,4481.1,0.7613]
[1755457898653,1.5559,4481.3,4481.2,0.3267]
[1755457898860,1.5559,4481.3,4481.2,0.5506]
[1755457899164,1.5559,4481.3,4481.2,2.1754]
[1755457899558,1.5559,4481.3,4481.2,0.3267]
[1755457900066,1.5559,4481.1,4481.0,0.3267]
[1755457900253,0.198,4481.0,4480.7,0.3267]
[1755457900563,1.5559,4480.8,4480.7,1.4428]
[1755457900763,4.3156,4481.1,4481.0,0.8787]
[1755457901065,4.91615597,4481.1,4481.0,2.1754]
[1755457901362,4.91615597,4481.1,4481.0,5.056142]
[1755457901560,5.36425597,4481.1,4481.0,2.880742]
[1755457901768,5.46425597,4481.1,4481.0,2.880742]
[1755457902665,5.36425597,4481.1,4481.0,4.621542]
[1755457902857,5.36425597,4481.1,4481.0,5.056142]
[1755457904768,3.80835597,4481.1,4481.0,5.056142]
[1755457905069,3.2078,4481.6,4481.1,1.2967]
[1755457905273,3.2078,4481.6,4481.2,1.2967]
[1755457905464,3.2078,4481.6,4481.5,0.4346]
[1755457905669,3.2078,4481.6,4481.5,1.2967]
[1755457907966,3.2078,4481.6,4481.5,2.1754]
[1755457908163,3.2078,4482.3,4482.2,0.9005]
[1755457908366,3.2078,4482.3,4482.2,2.2139]
[1755457908367,3.4028033,4482.3,4482.2,2.2139]
[1755457908766,3.2078,4482.3,4482.2,2.2139]
[1755457908966,3.40274934,4482.3,4482.2,2.2139]
[1755457909373,3.40274932,4482.3,4482.2,2.2139]
[1755457909666,3.91764932,4482.3,4482.2,2.2139]
[1755457909870,4.70574932,4482.3,4482.2,2.2139]
[1755457910268,4.70574932,4482.3,4482.2,5.094642]
[1755457910465,5.25854932,4482.3,4482.2,5.094642]
[1755457911872,5.58994932,4482.3,4482.2,2.880742]
[1755457913268,5.395,4482.3,4482.2,2.880742]
[1755457913469,5.395,4482.3,4482.2,3.210342]
[1755457913766,5.58977202,4482.3,4482.2,3.210342]
[1755457913964,5.58977202,4482.3,4482.2,3.441842]
[1755457914371,5.58974625,4482.3,4482.2,3.441842]
[1755457914580,5.395,4482.3,4482.2,4.639542]
[1755457914780,4.5108,4482.3,4482.2,5.094642]
[1755457915075,4.1593,4482.3,4482.2,5.094642]
[1755457915668,4.5108,4482.3,4482.2,2.880742]
[1755457915867,5.0636,4482.3,4482.2,4.639542]
[1755457916072,5.0636,4482.3,4482.2,5.094642]
[1755457916272,4.5108,4482.3,4482.2,5.094642]
[1755457916473,3.2078,4482.3,4482.2,5.094642]
[1755457916863,3.5007,4482.3,4482.2,5.094642]
[1755457917375,3.7227,4482.3,4482.2,5.094642]
[1755457918376,3.91763844,4482.3,4482.2,5.094642]
[1755457918574,3.91763832,4482.3,4482.2,5.094642]
[1755457919070,3.40273832,4482.3,4482.2,3.210342]
[1755457919272,3.2078,4482.9,4482.8,2.2139]
[1755457919472,4.35422113,4482.9,4482.8,2.2139]
[1755457920076,4.70572113,4482.9,4482.8,2.2139]
[1755457920979,4.70572113,4482.9,4482.2,0.0223]
[1755457920980,4.70572113,4482.9,4482.2,1.3134]
[1755457921271,2.38212113,4482.8,4482.7,0.94]
[1755457921477,0.8664,4482.5,4482.4,0.8583]
[1755457921666,4.627,4482.9,4482.8,1.4292]
[1755457921867,3.40285124,4482.9,4482.8,2.2139]
[1755457926172,3.7227,4482.9,4482.8,2.2139]
[1755457926372,4.70597836,4482.9,4482.8,2.2139]
[1755457926873,5.59015159,4482.9,4482.8,2.2139]
[1755457927169,5.59015159,4482.9,4479.5,8.969]
[1755457927170,0.9894,4480.7,4480.4,0.5287]
[1755457927371,0.9515,4480.5,4480.4,2.2139]
[1755457927572,3.2078,4481.0,4480.1,0.10044307]
[1755457927573,0.0223,4480.9,4480.1,0.10044307]
[1755457927779,1.3208,4480.2,4480.1,0.10044307]
[1755457927975,1.5159127,4480.2,4480.1,0.10044307]
[1755457928678,0.1951127,4480.2,4480.1,1.41384307]
[1755457928881,0.6317127,4480.2,4480.1,1.41384307]
[1755457929082,1.5159127,4480.2,4480.1,0.10044307]
[1755457931186,1.3208,4480.2,4480.1,0.10044307]
[1755457932689,1.53786053,4480.2,4479.2,0.5287]
[1755457932982,1.3208,4479.7,4479.2,0.5287]
[1755457933183,0.9894,4479.6,4479.3,1.3134]
[1755457933384,0.4366,4479.5,4479.4,0.4551]
[1755457934088,0.4366,4479.5,4479.4,1.3134]
[1755457935483,0.9515,4479.5,4479.4,5.094642]
[1755457936578,0.5149,4479.5,4479.4,5.094642]
[1755457937689,0.9418,4479.5,4479.4,5.094642]
[1755457937888,1.808,4479.5,4479.4,5.094642]
[1755457938089,2.1481,4479.5,4479.4,2.880742]
[1755457938292,1.06337249,4479.5,4478.2,0.3255]
[1755457938589,0.1568,4478.1,4478.0,1.483]
[1755457938790,0.1568,4478.1,4478.0,1.8476]
[1755457938985,0.1568,4478.1,4478.0,2.1731]
[1755457939688,3.2078,4478.5,4478.0,0.8928]
[1755457939991,3.3646,4478.5,4478.4,2.1731]
[1755457940888,3.2078,4478.5,4478.4,2.1731]
[1755457941486,3.2078,4478.5,4478.4,5.053842]
[1755457943580,3.2078,4478.5,4478.4,4.621042]
[1755457943780,3.4494,4478.5,4478.4,4.621042]
[1755457944296,3.4494,4478.5,4478.4,5.053842]
[1755457944492,3.4347,4478.5,4478.4,5.053842]
[1755457944694,3.3913,4478.5,4478.4,5.053842]
[1755457945186,3.3795,4478.5,4478.4,5.053842]
[1755457945597,3.4337,4478.5,4478.4,5.053842]
[1755457946282,3.2078,4478.5,4478.4,5.053842]
[1755457947388,3.4478,4478.5,4478.4,4.621042]
[1755457947587,3.5547,4478.5,4478.4,3.206242]
[1755457948591,3.5547,4478.5,4478.4,2.880742]
[1755457948996,3.5547,4478.5,4478.4,3.206242]
[1755457949293,3.4478,4478.5,4478.4,3.206242]
[1755457950194,3.4478,4478.5,4478.4,3.953042]
[1755457950893,3.4478,4478.5,4478.4,4.621042]
[1755457951694,3.2078,4478.5,4478.4,5.053842]
[1755457952190,3.4478,4478.5,4478.4,5.053842]
[1755457955594,3.4331,4478.5,4478.4,5.053842]
[1755457956294,4.02921898,4478.5,4478.4,5.053842]
[1755457956596,4.22388657,4478.5,4478.4,5.053842]
[1755457957992,4.23858657,4478.5,4478.4,5.053842]
[1755457958198,4.23858657,4478.5,4478.4,4.621042]
[1755457958591,3.99858657,4478.5,4478.4,4.621042]
[1755457958793,3.99858657,4478.5,4478.4,5.053842]
[1755457958992,4.18148657,4478.5,4478.4,5.053842]
[1755457959195,4.22388657,4478.5,4478.4,5.053842]
[1755457959493,4.36778657,4478.5,4478.4,2.747342]
[1755457959901,4.36778657,4478.5,4478.4,2.57984741]
[1755457960592,4.36778657,4478.5,4477.2,0.522]
[1755457960796,4.36778657,4478.5,4476.6,3.2301]
[1755457960797,3.2078,4477.6,4476.8,0.5503]
[1755457960999,3.2078,4477.6,4476.6,0.4328]
[1755457961000,3.2078,4477.0,4476.9,1.7403]
[1755457961192,3.99858657,4477.0,4476.9,0.3255]
[1755457961392,3.99858657,4477.0,4476.9,1.7403]
[1755457961692,3.99858657,4477.0,4476.9,2.1731]
[1755457962793,3.99872084,4477.0,4476.9,2.1731]
[1755457963799,3.99872084,4477.0,4476.9,2.880742]
[1755457964302,4.02102084,4477.0,4476.9,2.880742]
[1755457964697,4.1999541,4477.0,4476.9,2.880742]
[1755457965993,4.02102084,4477.0,4476.9,2.880742]
[1755457966301,4.02102084,4477.0,4476.9,2.71318504]
[1755457966692,4.20059551,4477.0,4476.9,2.71318504]
[1755457967102,5.77579574,4477.0,4476.9,2.71318504]
[1755457967699,5.59772107,4477.0,4476.9,2.71318504]
[1755457967900,8.59542107,4477.0,4476.9,3.03618504]
[1755457968202,8.59542107,4477.0,4476.9,3.60828504]
[1755457968397,7.02022084,4477.0,4476.9,3.60828504]
[1755457968905,7.02022084,4477.0,4476.9,3.03618504]
[1755457970101,7.02252084,4477.0,4476.9,3.03618504]
[1755457970299,7.02022084,4477.0,4476.9,2.71318504]
[1755457970602,7.02022084,4477.0,4476.9,3.03618504]
[1755457971099,4.01642084,4477.0,4476.9,4.94898504]
[1755457971497,3.99872084,4477.0,4476.9,4.94898504]
[1755457972003,3.99805854,4477.0,4476.9,4.94898504]
[1755457972204,4.00475854,4477.0,4476.9,4.94898504]
[1755457972502,4.01955854,4477.0,4476.9,4.94898504]
[1755457973197,4.01955854,4477.0,4476.9,3.03618504]
[1755457973395,4.01955854,4477.0,4476.9,3.26788504]
[1755457973597,4.01955854,4477.0,4476.9,4.50808504]
[1755457973798,4.01955854,4477.0,4476.9,4.94898504]
[1755457974205,4.01575854,4477.0,4476.9,4.94898504]
[1755457975099,4.01568099,4477.0,4476.9,4.94898504]
[1755457975598,4.01948099,4477.0,4476.9,4.94898504]
[1755457976304,4.0194466,4477.0,4476.9,4.94898504]
[1755457976703,4.0156466,4477.0,4476.9,4.94898504]
[1755457977300,4.0194466,4477.0,4476.9,4.94898504]
[1755457977606,4.0156466,4477.0,4476.9,4.94898504]
[1755457978301,4.0009466,4477.0,4476.9,3.03618504]
[1755457978499,4.0194466,4477.0,4476.9,3.83998504]
[1755457979103,4.0156466,4477.0,4476.9,2.71318504]
[1755457979300,4.0156466,4477.0,4476.9,4.50808504]
[1755457979301,3.9979466,4477.0,4476.9,4.50808504]
[1755457979501,4.0046466,4477.0,4476.9,4.94898504]
[1755457980007,3.9979466,4477.0,4476.9,4.94898504]
[1755457980406,3.9979466,4477.0,4476.9,4.97128504]
[1755457980709,0.59444606,4477.0,4476.9,3.63528504]
[1755457980908,3.2078,4477.5,4476.9,3.63528504]
[1755457981304,3.2078,4477.5,4477.4,0.6142]
[1755457981602,3.2078,4477.5,4477.4,2.2358]
[1755457982000,3.2078,4477.5,4477.4,2.2581]
[1755457982602,0.5407,4478.5,4476.9,2.71318504]
[1755457982603,3.2078,4478.0,4477.9,2.2581]
[1755457982808,3.2078,4478.5,4478.0,1.336]
[1755457983002,3.2078,4478.5,4478.4,2.2358]
[1755457983200,3.4318,4478.5,4478.4,2.2358]
[1755457983406,5.3805,4478.5,4478.4,2.2358]
[1755457984009,5.3805,4478.5,4478.4,1.9128]
[1755457984206,0.3002,4478.1,4478.0,1.013]
[1755457984510,2.1727,4478.1,4478.0,1.9128]
[1755457985305,2.1727,4478.1,4478.0,4.62598504]
[1755457985505,2.1727,4478.1,4478.0,2.71318504]
[1755457986508,2.1727,4478.1,4478.0,3.32738504]
[1755457986707,2.1727,4478.1,4478.0,4.62598504]
[1755457987406,2.1727,4478.1,4478.0,2.71318504]
[1755457987710,2.1727,4478.1,4478.0,4.62598504]
[1755457988607,3.536,4478.5,4478.1,0.5721]
[1755457988805,5.0523,4478.5,4478.4,1.9128]
[1755457989310,5.3805,4478.5,4478.4,1.9128]
[1755457990410,2.1727,4478.1,4478.0,1.9128]
[1755457990611,2.1727,4478.1,4478.0,1.4719]
[1755457991113,2.1727,4478.1,4478.0,1.9128]
[1755457992415,2.1727,4478.1,4478.0,2.2358]
[1755457992617,2.1727,4478.1,4478.0,5.116542]
[1755457992820,2.36475227,4478.1,4478.0,5.116542]
[1755457993211,2.1727,4478.1,4478.0,5.116542]
[1755457994413,1.2916,4478.4,4478.1,0.8951]
[1755457994618,0.8811,4478.2,4478.1,2.2358]
[1755457994815,1.632,4478.2,4478.1,2.2358]
[1755457995220,2.1727,4478.2,4478.1,2.2358]
[1755457995718,1.2093,4478.2,4478.1,2.2358]
[1755457995913,3.2078,4478.5,4478.1,1.3407]
[1755457996115,4.0602,4478.5,4478.4,2.2358]
[1755457996312,4.8398,4478.5,4478.4,2.2358]
[1755457996510,4.8398,4478.5,4477.9,0.0223]
[1755457996511,0.3282,4478.4,4478.2,2.880742]
[1755457996711,2.1727,4478.3,4478.2,4.793542]
[1755457997613,2.1727,4478.3,4478.2,2.880742]
[1755457997815,2.76265871,4478.3,4478.2,2.880742]
[1755457999018,2.78495871,4478.3,4478.2,2.880742]
[1755457999220,28.62995871,4478.3,4477.1,0.5303]
[1755457999424,1.4979,4477.2,4477.1,2.1782]
[1755457999923,2.0417,4477.2,4477.1,0.2935]
[1755458000121,2.0417,4477.2,4477.1,1.3303]
[1755458000320,2.0417,4477.2,4477.1,1.8606]
[1755458001414,2.0417,4477.2,4476.4,1.4293]
[1755458001415,0.6143,4476.5,4476.4,1.4293]
[1755458001615,2.0417,4476.5,4476.4,2.1782]
[1755458002016,2.0417,4476.5,4476.4,1.8606]
[1755458002219,0.9104,4476.1,4476.0,0.7248]
[1755458002417,2.0417,4476.1,4476.0,0.7248]
[1755458002616,0.6143,4475.6,4475.5,1.8606]
[1755458002812,3.2078,4476.1,4474.9,3.2078]
[1755458002813,3.2078,4476.1,4476.0,0.899]
[1755458003019,3.2078,4476.1,4476.0,2.1782]
[1755458003526,3.2078,4476.1,4476.0,5.058942]
[1755458003824,4.1423,4476.1,4476.0,5.058942]
[1755458004629,3.2078,4476.1,4476.0,5.058942]
[1755458005017,4.4384,4476.1,4476.0,4.211042]
[1755458005218,5.2613,4476.1,4476.0,4.211042]
[1755458005625,5.2613,4476.1,4476.0,4.741342]
[1755458008324,3.7604,4476.1,4476.0,4.741342]
[1755458008520,3.2078,4476.1,4476.0,5.058942]
[1755458010423,3.2078,4476.6,4476.5,0.899]
[1755458010627,0.5526,4477.0,4476.9,1.7469]
[1755458010826,0.9345,4477.0,4476.9,2.1782]
[1755458011325,2.0535,4477.0,4476.4,0.3176]
[1755458011628,0.678,4476.1,4476.0,2.880742]
[1755458011821,0.9345,4476.1,4476.0,2.880742]
[1755458012023,2.0758,4476.1,4474.9,0.9616]
[1755458012324,0.3202,4476.3,4476.2,0.899]
[1755458012519,3.4673,4476.5,4476.2,0.899]
[1755458012520,3.2078,4476.5,4476.2,2.1782]
[1755458012731,3.2078,4477.0,4476.9,2.1782]
[1755458012928,3.7604,4477.0,4476.9,2.1782]
[1755458013234,5.2613,4477.0,4476.9,1.8606]
[1755458013430,3.2078,4477.0,4476.9,1.8606]
[1755458013630,3.2078,4477.0,4476.9,2.1782]
[1755458015433,3.2078,4477.0,4476.9,5.058942]
[1755458016328,4.1423,4477.0,4476.9,5.058942]
[1755458016532,5.2613,4477.0,4476.9,2.880742]
[1755458017233,5.2613,4477.0,4476.9,3.174242]
[1755458017433,5.2613,4477.0,4476.9,2.880742]
[1755458017932,5.2836,4477.0,4476.9,2.880742]
[1755458018435,5.87247593,4477.0,4476.9,2.880742]
[1755458018836,4.34927593,4477.0,4476.9,4.741342]
[1755458019038,3.2078,4477.0,4476.9,5.058942]
[1755458020335,3.2078,4477.7,4477.0,1.2792]
[1755458020532,3.2078,4477.7,4476.9,9.110842]
[1755458020833,3.2078,4477.7,4477.6,1.8606]
[1755458020834,4.4384,4477.7,4477.6,1.8606]
[1755458021131,0.3202,4478.1,4478.0,0.899]
[1755458021336,0.3202,4478.1,4478.0,2.1782]
[1755458021639,0.5526,4478.1,4478.0,2.1782]
[1755458021935,1.2306,4478.3,4478.2,0.899]
[1755458022129,2.84428529,4478.3,4478.2,1.8606]
[1755458022530,1.3446,4478.2,4477.5,0.3176]
[1755458022728,2.255,4478.2,4478.1,1.8606]
[1755458022926,3.2078,4478.7,4478.1,2.1782]
[1755458022927,0.3202,4478.6,4478.1,2.1782]
[1755458023130,2.84424941,4478.5,4478.4,1.8606]
[1755458023331,3.03819372,4478.5,4478.4,1.8606]
[1755458023734,3.03819372,4478.5,4478.4,1.4293]
[1755458023935,3.03819372,4478.5,4478.4,0.899]
[1755458024830,3.03819372,4478.5,4478.4,1.8606]
[1755458025233,3.03819372,4478.5,4478.4,5.058942]
[1755458025427,3.03819372,4478.5,4478.4,4.741342]
[1755458025833,2.84424941,4478.5,4478.4,4.741342]
[1755458026138,3.03819569,4478.5,4478.4,4.741342]
[1755458026633,3.03819966,4478.5,4478.4,2.880742]
[1755458027943,3.03839966,4478.5,4478.4,4.755542]
[1755458028333,3.03839966,4478.5,4478.4,2.880742]
[1755458029242,2.44915025,4478.5,4478.4,2.880742]
[1755458029541,3.03819915,4478.5,4478.4,2.880742]
[1755458029934,3.03819915,4478.5,4478.4,3.806242]
[1755458030134,2.44915025,4478.5,4478.4,4.771842]
[1755458030344,0.42635025,4478.5,4478.4,5.128142]
[1755458030840,0.77815025,4478.5,4478.4,5.128142]
[1755458031038,0.42635025,4478.5,4478.4,5.128142]
[1755458031241,0.19395025,4478.5,4478.4,5.128142]
[1755458031843,3.2078,4479.2,4478.4,3.828542]
[1755458032043,3.2078,4479.2,4479.1,2.2474]
[1755458032448,3.7772,4479.2,4479.1,2.2474]
[1755458032646,4.48,4479.2,4479.1,2.2474]
[1755458033542,5.5078,4479.2,4479.1,2.2474]
[1755458033743,3.2078,4479.2,4479.1,2.2474]
[1755458034245,5.5078,4479.2,4479.1,2.2474]
[1755458034543,1.484,4479.1,4479.0,0.9255]
[1755458034745,2.3,4479.1,4479.0,0.9255]
[1755458035245,2.3,4479.1,4479.0,3.806242]
[1755458035447,2.3,4479.1,4479.0,4.771842]
[1755458035647,2.3,4479.1,4479.0,5.128142]
[1755458037041,2.3,4479.6,4479.5,0.9255]
[1755458037243,2.3,4479.6,4479.5,1.8911]
[1755458037443,2.88851454,4479.6,4479.5,1.3548]
[1755458037641,2.88851454,4479.6,4479.5,0.9255]
[1755458039546,0.58851454,4479.6,4479.5,2.2474]
[1755458039746,3.2078,4479.7,4479.5,1.8911]
[1755458039948,1.8358,4479.6,4479.5,1.2818]
[1755458040149,2.3,4479.6,4479.5,1.2818]
[1755458040449,2.3,4479.6,4479.5,2.2474]
[1755458041440,2.3,4479.6,4479.5,5.128142]
[1755458043445,3.2078,4479.7,4479.5,3.806242]
[1755458043646,1.0278,4480.0,4479.6,2.2474]
[1755458043950,2.02691031,4479.9,4479.8,2.2474]
[1755458044452,0.19111031,4479.9,4479.8,2.2474]
[1755458044946,0.3518,4480.3,4479.8,2.2474]
[1755458045146,0.1910824,4480.2,4479.9,1.9427]
[1755458045347,0.5694,4480.2,4480.1,1.2818]
[1755458045549,0.7604557,4480.2,4480.1,1.2818]
[1755458045846,0.7604557,4480.2,4480.1,2.2474]
[1755458046351,0.1910557,4480.2,4480.1,2.2474]
[1755458046646,1.9853,4480.5,4480.4,0.6208]
[1755458046848,2.49103017,4480.5,4480.4,2.2474]
[1755458047048,0.19103017,4480.5,4480.4,1.8911]
[1755458047248,2.49103017,4480.5,4480.4,2.2474]
[1755458048347,0.19103017,4480.5,4480.4,2.2474]
[1755458048547,1.46323017,4480.5,4480.4,1.8911]
[1755458048752,2.49103017,4480.5,4480.4,1.8911]
[1755458049555,2.49103017,4480.5,4480.4,2.2474]
[1755458049854,0.19103017,4480.5,4480.4,2.2697]
[1755458050150,0.1,4481.2,4481.1,2.2474]
[1755458051149,0.1,4481.2,4481.1,5.4552]
[1755458052244,1.3722,4481.2,4481.1,5.4552]
[1755458052449,2.4,4481.2,4481.1,5.4552]
[1755458052850,2.4,4481.2,4481.1,5.0989]
[1755458053043,2.4,4481.2,4481.1,3.2078]
[1755458053249,0.3518,4481.1,4480.7,0.5363]
[1755458053555,0.1,4481.2,4480.7,1.1571]
[1755458053556,2.3,4480.8,4480.7,1.1571]
[1755458054151,2.3,4480.8,4480.7,1.5864]
[1755458054457,2.3,4480.8,4480.7,1.8911]
[1755458054754,2.3,4480.8,4480.7,2.2474]
[1755458055262,2.3,4480.8,4480.7,3.501542]
[1755458055556,2.3,4480.8,4480.7,3.806242]
[1755458055758,2.3,4480.8,4480.7,4.771842]
[1755458056060,0.1,4481.2,4481.1,2.2474]
[1755458056557,0.3176,4481.2,4481.1,2.2474]
[1755458056857,2.4,4481.2,4481.1,2.2474]
[1755458059662,0.3176,4481.2,4481.1,2.2474]
[1755458059853,0.1,4481.2,4481.1,2.2474]
[1755458061160,0.1,4481.2,4481.1,2.2697]
[1755458061361,0.1,4481.2,4481.1,2.2474]
[1755458062557,0.1,4481.2,4481.1,2.2697]
[1755458063161,0.1,4481.2,4481.1,2.2474]
[1755458065157,2.297,4481.2,4481.1,1.8911]
[1755458065358,2.297,4481.2,4481.1,2.2325]
[1755458065662,0.1,4481.2,4481.1,2.2325]
[1755458068057,2.297,4481.2,4481.1,2.2325]
[1755458069459,2.297,4481.2,4481.1,0.6098]
[1755458069863,2.297,4481.2,4481.1,1.8927]
[1755458071368,0.1,4481.2,4481.1,1.8927]
[1755458071664,0.1,4481.2,4481.1,2.2341]
[1755458072566,0.4494,4481.2,4481.1,2.2341]
[1755458072763,2.297,4481.2,4481.0,3.2078]
[1755458073068,2.197,4481.1,4481.0,5.0771]
[1755458073262,2.78986978,4481.1,4481.0,5.4185]
[1755458074368,2.78986978,4481.1,4481.0,3.7942]
[1755458074766,2.78986978,4481.1,4481.0,6.674942]
[1755458074961,2.78986978,4481.1,4481.0,2.880742]
[1755458077270,2.78986978,4481.1,4481.0,2.414642]
[1755458077767,2.78986978,4481.1,4481.0,2.24726301]